[Event "*** Titled Tuesday 3|2 Blitz"]
[Site "Chess.com"]
[Date "2017.03.07"]
[Round "9"]
[White "GMMelik"]
[Black "popov_m"]
[Result "1-0"]
[WhiteElo "2455"]
[BlackElo "2416"]
[TimeControl "180+2"]
[EndTime "15:11:20 PST"]
[Termination "GMMelik won by resignation"]

1. e4 {[%clk 0:02:59.3]} 1... e6 {[%clk 0:03:00.5]} 2. d4 {[%clk 0:03:00]} 2...
d5 {[%clk 0:03:02.1]} 3. Nc3 {[%clk 0:03:01.6]} 3... Bb4 {[%clk 0:03:03]} 4. e5
{[%clk 0:03:02.6]} 4... Ne7 {[%clk 0:03:04.3]} 5. a3 {[%clk 0:03:04]} 5... Bxc3+
{[%clk 0:03:05.5]} 6. bxc3 {[%clk 0:03:05.9]} 6... c5 {[%clk 0:03:06.8]} 7. Qg4
{[%clk 0:03:07.2]} 7... Qc7 {[%clk 0:03:06.9]} 8. Qxg7 {[%clk 0:03:07]} 8... Rg8
{[%clk 0:03:08.2]} 9. Qxh7 {[%clk 0:03:07.7]} 9... cxd4 {[%clk 0:03:09.8]} 10.
Ne2 {[%clk 0:03:07.5]} 10... dxc3 {[%clk 0:03:09.5]} 11. f4 {[%clk 0:03:07.5]}
11... Nbc6 {[%clk 0:03:06.3]} 12. Qd3 {[%clk 0:03:07.4]} 12... d4 {[%clk
0:03:05.3]} 13. Ng3 {[%clk 0:03:03.7]} 13... Bd7 {[%clk 0:03:00.7]} 14. Be2
{[%clk 0:03:04.2]} 14... O-O-O {[%clk 0:02:54.3]} 15. Rb1 {[%clk 0:03:01.5]}
15... Nd5 {[%clk 0:02:39.9]} 16. O-O {[%clk 0:02:55.7]} 16... Kb8 {[%clk
0:02:37.6]} 17. Ne4 {[%clk 0:02:51]} 17... Nce7 {[%clk 0:02:31.2]} 18. Qxd4
{[%clk 0:02:34]} 18... Bc6 {[%clk 0:02:30.2]} 19. Qf2 {[%clk 0:01:42.7]} 19...
Nf5 {[%clk 0:02:24]} 20. Bf3 {[%clk 0:01:41]} 20... Ka8 {[%clk 0:01:41.2]} 21.
Kh1 {[%clk 0:01:13.2]} 21... Rh8 {[%clk 0:01:41.2]} 22. g3 {[%clk 0:01:10.9]}
22... Rdg8 {[%clk 0:01:41.7]} 23. Ng5 {[%clk 0:00:50.4]} 23... Qe7 {[%clk
0:01:26.9]} 24. Kg2 {[%clk 0:00:35.4]} 24... f6 {[%clk 0:01:17.1]} 25. exf6
{[%clk 0:00:36.1]} 25... Qxf6 {[%clk 0:01:18.7]} 26. h4 {[%clk 0:00:36.2]} 26...
Qg6 {[%clk 0:00:26.7]} 27. Re1 {[%clk 0:00:36.8]} 27... Re8 {[%clk 0:00:26.2]}
28. Re5 {[%clk 0:00:36.7]} 28... Qf6 {[%clk 0:00:23.2]} 29. Rb3 {[%clk 0:00:34]}
29... Nh6 {[%clk 0:00:19.6]} 30. Qe2 {[%clk 0:00:29]} 30... Nf7 {[%clk
0:00:18.9]} 31. Rxe6 {[%clk 0:00:24.1]} 31... Nxg5 {[%clk 0:00:17.8]} 32. hxg5
{[%clk 0:00:14]} 32... Qxe6 {[%clk 0:00:08.6]} 33. Qxe6 {[%clk 0:00:15.2]} 33...
Rxe6 {[%clk 0:00:10.5]} 34. f5 {[%clk 0:00:16.8]} 34... Re1 {[%clk 0:00:10.4]}
35. Bf4 {[%clk 0:00:15.8]} 35... Nxf4+ {[%clk 0:00:11.5]} 36. gxf4 {[%clk
0:00:17.7]} 36... Bxf3+ {[%clk 0:00:11.6]} 37. Kxf3 {[%clk 0:00:18.9]} 37...
Rf1+ {[%clk 0:00:10]} 38. Kg4 {[%clk 0:00:16.1]} 38... Rg1+ {[%clk 0:00:11.2]}
39. Kf3 {[%clk 0:00:17.2]} 39... Rh3+ {[%clk 0:00:12.5]} 40. Ke4 {[%clk
0:00:18.6]} 40... Re1+ {[%clk 0:00:12.7]} 41. Kd5 {[%clk 0:00:19.7]} 41... Rf3
{[%clk 0:00:12.6]} 42. Rb4 {[%clk 0:00:20.8]} 42... a5 {[%clk 0:00:13]} 43. Rd4
{[%clk 0:00:20.9]} 43... Ref1 {[%clk 0:00:10.3]} 44. f6 {[%clk 0:00:21.5]} 44...
Rxf4 {[%clk 0:00:11.4]} 45. Rxf4 {[%clk 0:00:22.1]} 45... Rxf4 {[%clk
0:00:13.1]} 46. Ke6 {[%clk 0:00:23.6]} 46... Re4+ {[%clk 0:00:08.9]} 47. Kf5
{[%clk 0:00:23.8]} 47... Re2 {[%clk 0:00:10.3]} 48. g6 {[%clk 0:00:24.7]} 48...
Rxc2 {[%clk 0:00:11.3]} 49. g7 {[%clk 0:00:24.6]} 49... Rf2+ {[%clk 0:00:11.3]}
50. Ke6 {[%clk 0:00:25.4]} 50... Re2+ {[%clk 0:00:12.7]} 51. Kd5 {[%clk
0:00:25.8]} 51... Rg2 {[%clk 0:00:05.3]} 52. f7 {[%clk 0:00:26.6]} 52... c2
{[%clk 0:00:05.4]} 53. g8=Q+ {[%clk 0:00:25]} 53... Ka7 {[%clk 0:00:07]} 54.
Qxg2 {[%clk 0:00:24.6]} 54... c1=Q {[%clk 0:00:08.4]} 55. Qf2+ {[%clk
0:00:25.9]} 55... Ka6 {[%clk 0:00:08.1]} 56. f8=Q {[%clk 0:00:26.5]} 56... Qc6+
{[%clk 0:00:09.4]} 57. Ke5 {[%clk 0:00:26.4]} 57... Qc3+ {[%clk 0:00:09.3]} 58.
Ke4 {[%clk 0:00:27.4]} 58... Qc4+ {[%clk 0:00:08.3]} 59. Qd4 {[%clk 0:00:28.3]}
59... Qe2+ {[%clk 0:00:09.3]} 60. Kd5 {[%clk 0:00:28.1]} 60... Qg2+ {[%clk
0:00:08.7]} 61. Qe4 {[%clk 0:00:27.8]} 61... Qg5+ {[%clk 0:00:09.9]} 62. Qff5
{[%clk 0:00:28.3]} 62... Qd8+ {[%clk 0:00:10.4]} 63. Kc4 {[%clk 0:00:28.5]}
63... Qc7+ {[%clk 0:00:08.6]} 64. Qc5 {[%clk 0:00:25.7]} 64... Qf7+ {[%clk
0:00:09.4]} 65. Qcd5 {[%clk 0:00:25]} 65... b5+ {[%clk 0:00:10.4]} 66. Kd4
{[%clk 0:00:23.4]} 66... Qf2+ {[%clk 0:00:10.2]} 67. Ke5 {[%clk 0:00:23.8]}
67... Qg3+ {[%clk 0:00:10.2]} 68. Qf4 {[%clk 0:00:22.8]} 68... Qc3+ {[%clk
0:00:10.3]} 69. Ke6 {[%clk 0:00:21.9]} 69... Qc8+ {[%clk 0:00:10.3]} 70. Qd7
{[%clk 0:00:23.1]} 70... Qg8+ {[%clk 0:00:11.5]} 71. Kd6 {[%clk 0:00:21.4]}
71... Qb8+ {[%clk 0:00:09.6]} 72. Qc7 {[%clk 0:00:21.3]} 72... Qe8 {[%clk
0:00:09.4]} 73. Kd5 {[%clk 0:00:22.6]} 73... Qg8+ {[%clk 0:00:08.1]} 74. Qff7
{[%clk 0:00:22]} 74... Qg2+ {[%clk 0:00:08.4]} 75. Ke6 {[%clk 0:00:23]} 75...
Qe4+ {[%clk 0:00:08.6]} 76. Kd7 {[%clk 0:00:23.8]} 76... b4 {[%clk 0:00:06.2]}
77. Qc6+ {[%clk 0:00:23.7]} 1-0

[Event "*** Titled Tuesday 3|2 Blitz"]
[Site "Chess.com"]
[Date "2017.03.07"]
[Round "9"]
[White "GMCanty"]
[Black "SergeiAza"]
[Result "0-1"]
[WhiteElo "2352"]
[BlackElo "2597"]
[TimeControl "180+2"]
[EndTime "15:11:20 PST"]
[Termination "SergeiAza won by resignation"]

1. e4 {[%clk 0:03:02]} 1... c5 {[%clk 0:02:58.3]} 2. c3 {[%clk 0:03:02.6]} 2...
d5 {[%clk 0:02:58.6]} 3. exd5 {[%clk 0:03:03.3]} 3... Qxd5 {[%clk 0:03:00.2]} 4.
d4 {[%clk 0:03:05.2]} 4... Nc6 {[%clk 0:03:00.7]} 5. Nf3 {[%clk 0:03:06.4]} 5...
Bf5 {[%clk 0:03:01.5]} 6. Be2 {[%clk 0:03:03.9]} 6... cxd4 {[%clk 0:03:00.6]} 7.
cxd4 {[%clk 0:03:04.1]} 7... Bxb1 {[%clk 0:03:01.2]} 8. Rxb1 {[%clk 0:03:03.7]}
8... Nf6 {[%clk 0:03:01.3]} 9. O-O {[%clk 0:03:03.1]} 9... e6 {[%clk 0:03:02.8]}
10. b4 {[%clk 0:02:54.6]} 10... Bd6 {[%clk 0:03:00.5]} 11. b5 {[%clk 0:02:52.6]}
11... Ne7 {[%clk 0:03:01]} 12. Ne5 {[%clk 0:02:46.3]} 12... Bxe5 {[%clk
0:02:56.1]} 13. dxe5 {[%clk 0:02:48.2]} 13... Qxe5 {[%clk 0:02:56.3]} 14. Ba3
{[%clk 0:02:36.6]} 14... Nfd5 {[%clk 0:02:52.5]} 15. Bb2 {[%clk 0:02:31.2]}
15... Nc3 {[%clk 0:02:43.4]} 16. Bf3 {[%clk 0:02:21.3]} 16... O-O {[%clk
0:02:18.1]} 17. Qb3 {[%clk 0:02:21]} 17... Ned5 {[%clk 0:02:03.5]} 18. Bxd5
{[%clk 0:01:50]} 18... Ne2+ {[%clk 0:02:00.9]} 19. Kh1 {[%clk 0:01:51.4]} 19...
Qxd5 {[%clk 0:02:01.1]} 20. Qe3 {[%clk 0:01:51.4]} 20... Qxa2 {[%clk 0:01:15.6]}
21. Qxe2 {[%clk 0:01:50.5]} 21... Rac8 {[%clk 0:01:14.4]} 22. Ra1 {[%clk
0:01:45]} 22... Qb3 {[%clk 0:01:10.5]} 23. Ra3 {[%clk 0:01:40]} 23... Rc2 {[%clk
0:00:59.8]} 24. Rxb3 {[%clk 0:01:20.9]} 24... Rxe2 {[%clk 0:01:00.6]} 25. Bd4
{[%clk 0:01:22.4]} 25... Ra2 {[%clk 0:00:56.4]} 26. h4 {[%clk 0:01:09.6]} 26...
h5 {[%clk 0:00:53.2]} 27. Rg3 {[%clk 0:01:03.9]} 27... f6 {[%clk 0:00:51.8]} 28.
Rc3 {[%clk 0:00:56.1]} 28... Ra4 {[%clk 0:00:50]} 29. Be3 {[%clk 0:00:47.8]}
29... Rxh4+ {[%clk 0:00:48.1]} 30. Kg1 {[%clk 0:00:48.7]} 30... Rb4 {[%clk
0:00:47]} 31. Bc5 {[%clk 0:00:46.9]} 31... Rxb5 {[%clk 0:00:43.5]} 32. Bxf8
{[%clk 0:00:47.2]} 32... Kxf8 {[%clk 0:00:44.8]} 33. Rc7 {[%clk 0:00:47]} 33...
Kg8 {[%clk 0:00:28.8]} 34. Rd1 {[%clk 0:00:47.5]} 34... Kh7 {[%clk 0:00:27.4]}
35. Rdd7 {[%clk 0:00:48.7]} 35... Rg5 {[%clk 0:00:28.7]} 36. Rxb7 {[%clk
0:00:50]} 36... a5 {[%clk 0:00:29.9]} 37. Ra7 {[%clk 0:00:51.1]} 37... h4 {[%clk
0:00:31.1]} 38. f4 {[%clk 0:00:52]} 38... Rg4 {[%clk 0:00:30.9]} 39. Rxa5 {[%clk
0:00:51.7]} 39... Rxf4 {[%clk 0:00:30.3]} 40. Raa7 {[%clk 0:00:52.2]} 40... Rg4
{[%clk 0:00:30.6]} 41. Kf2 {[%clk 0:00:53.7]} 41... Kh6 {[%clk 0:00:30]} 42. Kf3
{[%clk 0:00:53.9]} 42... Rg3+ {[%clk 0:00:30.9]} 43. Kf2 {[%clk 0:00:54.2]}
43... e5 {[%clk 0:00:31.6]} 44. Rd8 {[%clk 0:00:51.9]} 44... Rg4 {[%clk
0:00:24.8]} 45. Rh8+ {[%clk 0:00:50]} 45... Kg6 {[%clk 0:00:25.8]} 46. Rg8
{[%clk 0:00:46.3]} 46... Kh7 {[%clk 0:00:26.5]} 47. Raa8 {[%clk 0:00:45.3]}
47... Rf4+ {[%clk 0:00:27.4]} 48. Ke3 {[%clk 0:00:45.9]} 48... Rg4 {[%clk
0:00:28.4]} 49. Rh8+ {[%clk 0:00:46.2]} 49... Kg6 {[%clk 0:00:29.1]} 50. Ra2
{[%clk 0:00:44.1]} 50... Kf5 {[%clk 0:00:26]} 51. Rh5+ {[%clk 0:00:43.4]} 51...
g5 {[%clk 0:00:26.6]} 52. Rh6 {[%clk 0:00:44.7]} 52... Rg3+ {[%clk 0:00:25.5]}
53. Kf2 {[%clk 0:00:45.1]} 53... e4 {[%clk 0:00:21.2]} 54. Ra5+ {[%clk
0:00:44.4]} 54... Kg4 {[%clk 0:00:12.8]} 55. Rxf6 {[%clk 0:00:28.7]} 55... e3+
{[%clk 0:00:14]} 56. Ke2 {[%clk 0:00:23.5]} 56... Rxg2+ {[%clk 0:00:14.7]} 57.
Kxe3 {[%clk 0:00:25]} 57... h3 {[%clk 0:00:13.1]} 58. Rh6 {[%clk 0:00:23.9]}
58... h2 {[%clk 0:00:11]} 59. Ra4+ {[%clk 0:00:23.9]} 59... Kg3 {[%clk
0:00:11.7]} 60. Ra5 {[%clk 0:00:21.2]} 60... g4 {[%clk 0:00:07.5]} 61. Ra3
{[%clk 0:00:20.7]} 61... Rg1 {[%clk 0:00:05.6]} 62. Ke2+ {[%clk 0:00:20.2]}
62... Kg2 {[%clk 0:00:06.8]} 63. Ra2 {[%clk 0:00:19.9]} 63... h1=Q {[%clk
0:00:06]} 64. Ke3+ {[%clk 0:00:15.4]} 64... Kg3 {[%clk 0:00:07.3]} 65. Rxh1
{[%clk 0:00:14.4]} 65... Rxh1 {[%clk 0:00:08.6]} 66. Re2 {[%clk 0:00:14]} 66...
Rf1 {[%clk 0:00:09.4]} 67. Ke4 {[%clk 0:00:13]} 67... Rf4+ {[%clk 0:00:10.2]}
68. Ke3 {[%clk 0:00:13.9]} 68... Rf8 {[%clk 0:00:11.6]} 69. Rb2 {[%clk
0:00:12.6]} 69... Re8+ {[%clk 0:00:12.7]} 70. Kd3 {[%clk 0:00:13.9]} 70... Kf3
{[%clk 0:00:13]} 71. Rb1 {[%clk 0:00:13.2]} 71... Rd8+ {[%clk 0:00:14]} 72. Kc3
{[%clk 0:00:13.2]} 72... g3 {[%clk 0:00:15.3]} 73. Rf1+ {[%clk 0:00:14.2]} 73...
Ke2 {[%clk 0:00:15.8]} 74. Rg1 {[%clk 0:00:14.9]} 74... Kf2 {[%clk 0:00:16.4]}
75. Rh1 {[%clk 0:00:15.9]} 75... g2 {[%clk 0:00:17.5]} 76. Rh2 {[%clk
0:00:17.3]} 76... Kg3 {[%clk 0:00:17.8]} 77. Rxg2+ {[%clk 0:00:17.4]} 0-1

[Event "*** Titled Tuesday 3|2 Blitz"]
[Site "Chess.com"]
[Date "2017.03.07"]
[Round "9"]
[White "Shivagami"]
[Black "Schemato"]
[Result "1/2-1/2"]
[WhiteElo "1943"]
[BlackElo "2244"]
[TimeControl "180+2"]
[EndTime "15:12:11 PST"]
[Termination "Game drawn by agreement"]

1. d4 {[%clk 0:03:02]} 1... e6 {[%clk 0:03:00.2]} 2. Bf4 {[%clk 0:03:02.4]} 2...
c5 {[%clk 0:02:55]} 3. e3 {[%clk 0:02:53.1]} 3... Nf6 {[%clk 0:02:52]} 4. c3
{[%clk 0:02:47.4]} 4... b6 {[%clk 0:02:46.8]} 5. Nf3 {[%clk 0:02:45.8]} 5... Bb7
{[%clk 0:02:47.5]} 6. Bd3 {[%clk 0:02:46.1]} 6... d6 {[%clk 0:02:47.5]} 7. O-O
{[%clk 0:02:43]} 7... Be7 {[%clk 0:02:47.8]} 8. h3 {[%clk 0:02:43.7]} 8... Nbd7
{[%clk 0:02:47]} 9. Nbd2 {[%clk 0:02:41.6]} 9... O-O {[%clk 0:02:46.9]} 10. e4
{[%clk 0:02:41]} 10... Qc7 {[%clk 0:02:35.8]} 11. Re1 {[%clk 0:02:20.8]} 11...
e5 {[%clk 0:02:36.1]} 12. dxe5 {[%clk 0:02:18]} 12... dxe5 {[%clk 0:02:36.4]}
13. Bg3 {[%clk 0:02:19.2]} 13... Nh5 {[%clk 0:02:29.3]} 14. Bh2 {[%clk
0:02:18.5]} 14... Nf4 {[%clk 0:02:26.3]} 15. Bc2 {[%clk 0:02:13.3]} 15... Rad8
{[%clk 0:02:23.9]} 16. Qc1 {[%clk 0:02:08.8]} 16... c4 {[%clk 0:02:19.3]} 17.
Nxe5 {[%clk 0:01:59.4]} 17... Qxe5 {[%clk 0:02:06.3]} 18. Nxc4 {[%clk
0:01:57.9]} 18... Nxh3+ {[%clk 0:02:00.9]} 19. gxh3 {[%clk 0:01:57.8]} 19... Qh5
{[%clk 0:01:54.8]} 20. Qe3 {[%clk 0:01:48.8]} 20... Bc5 {[%clk 0:01:53.5]} 21.
Qg3 {[%clk 0:01:48.6]} 21... Nf6 {[%clk 0:01:43.1]} 22. b4 {[%clk 0:01:35.5]}
22... Be7 {[%clk 0:01:35.3]} 23. Rad1 {[%clk 0:01:18.7]} 23... Rxd1 {[%clk
0:01:28.5]} 24. Bxd1 {[%clk 0:01:15.7]} 24... Qb5 {[%clk 0:01:27]} 25. Nd2
{[%clk 0:01:05.8]} 25... Rd8 {[%clk 0:01:23]} 26. a4 {[%clk 0:01:01.7]} 26...
Qd3 {[%clk 0:01:19.3]} 27. Nb3 {[%clk 0:00:44.1]} 27... Nxe4 {[%clk 0:01:09.2]}
28. Qxd3 {[%clk 0:00:37.5]} 28... Rxd3 {[%clk 0:01:09.5]} 29. Bc2 {[%clk
0:00:38.3]} 29... Rxc3 {[%clk 0:01:05.7]} 30. Bxe4 {[%clk 0:00:39]} 30... Bxe4
{[%clk 0:00:48.7]} 31. Rxe4 {[%clk 0:00:40.9]} 31... Kf8 {[%clk 0:00:49.9]} 32.
Nd2 {[%clk 0:00:35.3]} 32... Rxh3 {[%clk 0:00:49.1]} 33. Rc4 {[%clk 0:00:32.9]}
33... f6 {[%clk 0:00:39.7]} 34. Bb8 {[%clk 0:00:26.7]} 34... a6 {[%clk
0:00:31.7]} 35. Ne4 {[%clk 0:00:20.6]} 35... Rb3 {[%clk 0:00:26.7]} 36. Nd6
{[%clk 0:00:13.3]} 36... g5 {[%clk 0:00:19]} 37. Rc8+ {[%clk 0:00:12.6]} 37...
Kg7 {[%clk 0:00:19.9]} 38. Rc7 {[%clk 0:00:13.4]} 38... Kf8 {[%clk 0:00:20]} 39.
Nc8 {[%clk 0:00:11.2]} 39... Bxb4 {[%clk 0:00:17.1]} 40. Nxb6 {[%clk 0:00:12.1]}
40... Ba5 {[%clk 0:00:16.3]} 41. Rc8+ {[%clk 0:00:10.6]} 41... Kf7 {[%clk
0:00:16.7]} 42. Nd5 {[%clk 0:00:10.2]} 42... Rb1+ {[%clk 0:00:16.5]} 43. Kg2
{[%clk 0:00:10.3]} 43... Bd2 {[%clk 0:00:16.6]} 44. Rd8 {[%clk 0:00:10.3]} 44...
g4 {[%clk 0:00:17.1]} 45. Nc7 {[%clk 0:00:08.8]} 45... Bg5 {[%clk 0:00:16.7]}
46. Nxa6 {[%clk 0:00:09.5]} 46... Ra1 {[%clk 0:00:17]} 47. Nc5 {[%clk
0:00:10.3]} 47... Ra2 {[%clk 0:00:17.4]} 48. Rd7+ {[%clk 0:00:09.8]} 48... Kg6
{[%clk 0:00:18.1]} 49. Ra7 {[%clk 0:00:10.3]} 49... h5 {[%clk 0:00:18.1]} 50. a5
{[%clk 0:00:10.4]} 50... h4 {[%clk 0:00:19.2]} 51. Kg1 {[%clk 0:00:11.4]} 51...
Ra1+ {[%clk 0:00:19.2]} 52. Kg2 {[%clk 0:00:12.4]} 52... Ra2 {[%clk 0:00:21.1]}
53. Ne4 {[%clk 0:00:13.6]} 53... g3 {[%clk 0:00:21.1]} 54. a6 {[%clk 0:00:10.9]}
54... Kf5 {[%clk 0:00:22.1]} 55. Nd6+ {[%clk 0:00:09.8]} 55... Kg4 {[%clk
0:00:21.1]} 56. Ne4 {[%clk 0:00:08.7]} 56... Kf5 {[%clk 0:00:19.6]} 57. Nxg3+
{[%clk 0:00:08.9]} 57... hxg3 {[%clk 0:00:20.1]} 58. Kxg3 {[%clk 0:00:10.4]}
58... Ra3+ {[%clk 0:00:17.1]} 59. f3 {[%clk 0:00:10.4]} 59... Be3 {[%clk
0:00:17.2]} 60. Ra8 {[%clk 0:00:11.2]} 60... Ke6 {[%clk 0:00:16.3]} 61. Bf4
{[%clk 0:00:09.2]} 61... Bxf4+ {[%clk 0:00:11.5]} 62. Kxf4 {[%clk 0:00:10]}
62... Ra4+ {[%clk 0:00:13.4]} 63. Kg3 {[%clk 0:00:10.8]} 63... Kf5 {[%clk
0:00:13.9]} 64. a7 {[%clk 0:00:11]} 64... Ra3 {[%clk 0:00:15.2]} 65. Kf2 {[%clk
0:00:10.2]} 65... Kf4 {[%clk 0:00:15.2]} 66. Rf8 {[%clk 0:00:08.1]} 66... Ra2+
{[%clk 0:00:15.8]} 67. Kf1 {[%clk 0:00:08.2]} 67... Rxa7 {[%clk 0:00:17.7]} 68.
Rxf6+ {[%clk 0:00:08.6]} 68... Kg5 {[%clk 0:00:18.8]} 69. Rf8 {[%clk 0:00:09.8]}
69... Ra2 {[%clk 0:00:17.2]} 70. Rg8+ {[%clk 0:00:08.9]} 70... Kf4 {[%clk
0:00:16.7]} 71. Rf8+ {[%clk 0:00:10.1]} 71... Kg5 {[%clk 0:00:16]} 72. Rb8
{[%clk 0:00:11.5]} 72... Kf4 {[%clk 0:00:15.8]} 73. Rb3 {[%clk 0:00:12.4]} 73...
Rc2 {[%clk 0:00:16]} 74. Ra3 {[%clk 0:00:13.2]} 74... Rb2 {[%clk 0:00:16.9]} 75.
Rc3 {[%clk 0:00:12.8]} 75... Ra2 {[%clk 0:00:17.6]} 76. Rb3 {[%clk 0:00:13.7]}
76... Rc2 {[%clk 0:00:18]} 77. Rd3 {[%clk 0:00:14.5]} 77... Ra2 {[%clk
0:00:16.8]} 78. Rc3 {[%clk 0:00:14.6]} 78... Kg3 {[%clk 0:00:17.2]} 79. f4+
{[%clk 0:00:14.4]} 79... Kxf4 {[%clk 0:00:17.7]} 80. Rc4+ {[%clk 0:00:14.3]}
80... Ke3 {[%clk 0:00:17.7]} 1/2-1/2

[Event "*** Titled Tuesday 3|2 Blitz"]
[Site "Chess.com"]
[Date "2017.03.07"]
[Round "9"]
[White "Fandorine"]
[Black "Matibar"]
[Result "1-0"]
[WhiteElo "2643"]
[BlackElo "2569"]
[TimeControl "180+2"]
[EndTime "15:12:30 PST"]
[Termination "Fandorine won by resignation"]

1. e4 {[%clk 0:03:02]} 1... e6 {[%clk 0:02:58.1]} 2. d4 {[%clk 0:03:02.7]} 2...
d5 {[%clk 0:02:58.9]} 3. Bd3 {[%clk 0:03:03.1]} 3... dxe4 {[%clk 0:02:55.8]} 4.
Bxe4 {[%clk 0:03:05]} 4... Nf6 {[%clk 0:02:56.7]} 5. Bf3 {[%clk 0:03:06.6]} 5...
Nc6 {[%clk 0:02:57.4]} 6. Ne2 {[%clk 0:03:05.7]} 6... e5 {[%clk 0:02:55.6]} 7.
Bxc6+ {[%clk 0:02:50.6]} 7... bxc6 {[%clk 0:02:55.1]} 8. O-O {[%clk 0:02:51.8]}
8... Bd6 {[%clk 0:02:47.8]} 9. dxe5 {[%clk 0:02:46.7]} 9... Bxe5 {[%clk
0:02:47.3]} 10. Qxd8+ {[%clk 0:02:48.1]} 10... Kxd8 {[%clk 0:02:49.2]} 11. Nbc3
{[%clk 0:02:39.1]} 11... Bf5 {[%clk 0:02:47.9]} 12. Bf4 {[%clk 0:02:37.1]} 12...
Bxf4 {[%clk 0:02:29.6]} 13. Nxf4 {[%clk 0:02:39]} 13... Bxc2 {[%clk 0:02:30.8]}
14. Rac1 {[%clk 0:02:40.1]} 14... Bf5 {[%clk 0:02:31.5]} 15. Rfd1+ {[%clk
0:02:40.9]} 15... Kc8 {[%clk 0:02:31.6]} 16. Nce2 {[%clk 0:02:35.2]} 16... Bd7
{[%clk 0:02:18.4]} 17. Nd4 {[%clk 0:02:33.6]} 17... Rb8 {[%clk 0:02:19.8]} 18.
Nd3 {[%clk 0:02:33.5]} 18... Rd8 {[%clk 0:02:10]} 19. b3 {[%clk 0:01:58.9]}
19... Bg4 {[%clk 0:01:43.1]} 20. Nxc6 {[%clk 0:01:59.6]} 20... Bxd1 {[%clk
0:01:42.6]} 21. Nxd8 {[%clk 0:01:48.2]} 21... Be2 {[%clk 0:01:31.3]} 22. Nf4
{[%clk 0:01:47.2]} 22... Kxd8 {[%clk 0:01:31.1]} 23. Nxe2 {[%clk 0:01:48.3]}
23... Rb6 {[%clk 0:01:01.8]} 24. Nd4 {[%clk 0:01:36.3]} 24... g6 {[%clk
0:00:57.5]} 25. f3 {[%clk 0:01:32.6]} 25... Kd7 {[%clk 0:00:57.6]} 26. Kf2
{[%clk 0:01:33.2]} 26... a6 {[%clk 0:00:57.3]} 27. Rc2 {[%clk 0:00:49.9]} 27...
Rd6 {[%clk 0:00:55.4]} 28. Ne2 {[%clk 0:00:45.1]} 28... Nd5 {[%clk 0:00:56.2]}
29. a3 {[%clk 0:00:45.7]} 29... c6 {[%clk 0:00:38.6]} 30. g3 {[%clk 0:00:32.9]}
30... Kc7 {[%clk 0:00:38.3]} 31. b4 {[%clk 0:00:25.6]} 31... Kb6 {[%clk
0:00:36.2]} 32. Rc4 {[%clk 0:00:25.7]} 32... a5 {[%clk 0:00:32.7]} 33. bxa5+
{[%clk 0:00:22.5]} 33... Kxa5 {[%clk 0:00:33.6]} 34. Nd4 {[%clk 0:00:22.8]}
34... Kb6 {[%clk 0:00:33.1]} 35. Nb3 {[%clk 0:00:21.2]} 35... Rd8 {[%clk
0:00:16.7]} 36. a4 {[%clk 0:00:20]} 36... Kc7 {[%clk 0:00:15.2]} 37. Nd4 {[%clk
0:00:19]} 37... Ne7 {[%clk 0:00:15.3]} 38. Ke3 {[%clk 0:00:12.6]} 38... Ra8
{[%clk 0:00:15.8]} 39. Kd3 {[%clk 0:00:11.4]} 39... Kd6 {[%clk 0:00:16.3]} 40.
f4 {[%clk 0:00:10.5]} 40... Ra6 {[%clk 0:00:14.8]} 41. Nb3 {[%clk 0:00:10.9]}
41... Nd5 {[%clk 0:00:14.9]} 42. Nc5 {[%clk 0:00:12.2]} 42... Ra7 {[%clk
0:00:15.2]} 43. a5 {[%clk 0:00:11]} 43... f5 {[%clk 0:00:14.3]} 44. Kd4 {[%clk
0:00:08.6]} 44... Nc7 {[%clk 0:00:14.6]} 45. Ra4 {[%clk 0:00:08.4]} 45... Nb5+
{[%clk 0:00:13.7]} 46. Kc4 {[%clk 0:00:09.5]} 46... Nc7 {[%clk 0:00:14.3]} 47.
Ra1 {[%clk 0:00:08.5]} 47... Nd5 {[%clk 0:00:14.8]} 48. Ra3 {[%clk 0:00:04.8]}
48... Kc7 {[%clk 0:00:12.6]} 49. a6 {[%clk 0:00:05.6]} 49... Nb6+ {[%clk
0:00:13.1]} 50. Kd4 {[%clk 0:00:07.1]} 50... Kd6 {[%clk 0:00:13.8]} 51. Rb3
{[%clk 0:00:06.5]} 51... Kc7 {[%clk 0:00:14]} 52. Ke5 {[%clk 0:00:06.1]} 52...
Nc4+ {[%clk 0:00:14.8]} 53. Kf6 {[%clk 0:00:07]} 53... Na5 {[%clk 0:00:15.9]}
54. Rd3 {[%clk 0:00:05.6]} 54... Kb6 {[%clk 0:00:16.7]} 55. Rc3 {[%clk
0:00:07.2]} 55... Kb5 {[%clk 0:00:16.8]} 56. Ke6 {[%clk 0:00:05.9]} 56... Nc4
{[%clk 0:00:17.6]} 57. Nd3 {[%clk 0:00:05.1]} 57... Rxa6 {[%clk 0:00:17.8]} 58.
Rb3+ {[%clk 0:00:06.7]} 58... Ka4 {[%clk 0:00:18.3]} 59. Nc5+ {[%clk 0:00:08.1]}
59... Ka5 {[%clk 0:00:18.5]} 60. Nxa6 {[%clk 0:00:09.3]} 60... Kxa6 {[%clk
0:00:19.8]} 61. Kd7 {[%clk 0:00:09.6]} 61... Na5 {[%clk 0:00:17.7]} 62. Rb1
{[%clk 0:00:09.3]} 62... c5 {[%clk 0:00:18.5]} 63. Kc7 {[%clk 0:00:08.3]} 63...
c4 {[%clk 0:00:19.8]} 64. Rb6+ {[%clk 0:00:09.2]} 64... Ka7 {[%clk 0:00:20.9]}
65. Rb5 {[%clk 0:00:10.3]} 65... Ka6 {[%clk 0:00:21.9]} 66. Rb6+ {[%clk
0:00:10.7]} 66... Ka7 {[%clk 0:00:22.8]} 67. Rb4 {[%clk 0:00:12.1]} 67... Ka6
{[%clk 0:00:24.3]} 68. Kd6 {[%clk 0:00:08.9]} 68... Nb7+ {[%clk 0:00:25.2]} 69.
Kd5 {[%clk 0:00:08]} 69... Na5 {[%clk 0:00:25.7]} 70. Rb1 {[%clk 0:00:06.7]}
70... Ka7 {[%clk 0:00:23.5]} 71. Kd4 {[%clk 0:00:06.8]} 71... Ka6 {[%clk
0:00:24.4]} 72. Kc5 {[%clk 0:00:07.6]} 72... Nb3+ {[%clk 0:00:24.6]} 73. Kb4
{[%clk 0:00:07.7]} 73... Nd2 {[%clk 0:00:25.5]} 74. Rd1 {[%clk 0:00:07.8]} 74...
Nf3 {[%clk 0:00:25.2]} 75. h4 {[%clk 0:00:07.6]} 75... Kb6 {[%clk 0:00:25.4]}
76. Kxc4 {[%clk 0:00:08.2]} 76... Kc6 {[%clk 0:00:26.5]} 77. Ra1 {[%clk
0:00:07.2]} 77... Kd6 {[%clk 0:00:25.8]} 78. Ra7 {[%clk 0:00:07.8]} 78... Nd2+
{[%clk 0:00:22]} 79. Kd4 {[%clk 0:00:07.9]} 79... Ne4 {[%clk 0:00:23]} 80. Rxh7
{[%clk 0:00:08.6]} 80... Ke6 {[%clk 0:00:24.2]} 81. g4 {[%clk 0:00:08]} 81...
Nf6 {[%clk 0:00:24.4]} 82. Rh6 {[%clk 0:00:07.9]} 82... fxg4 {[%clk 0:00:25.4]}
83. Rxg6 {[%clk 0:00:09.1]} 83... Kf5 {[%clk 0:00:26.4]} 84. Rxf6+ {[%clk
0:00:05.6]} 84... Kxf6 {[%clk 0:00:27.4]} 85. Ke4 {[%clk 0:00:07.1]} 85... Kg6
{[%clk 0:00:26.9]} 86. Ke3 {[%clk 0:00:08]} 86... Kh5 {[%clk 0:00:26.9]} 87. f5
{[%clk 0:00:09.5]} 87... Kxh4 {[%clk 0:00:28.1]} 88. f6 {[%clk 0:00:11]} 88...
Kh3 {[%clk 0:00:28.8]} 89. f7 {[%clk 0:00:12.3]} 89... g3 {[%clk 0:00:30]} 90.
f8=Q {[%clk 0:00:13.1]} 1-0